bitfinex-derivatives/quotes_SOLF0:USTF0_20250817
["timestamp","ask_amount","ask_price","bid_price","bid_amount"]
[1755424719512,2.88,192.32,192.28,2.87]
[1755424719708,2.88,192.3,192.28,2.87]
[1755424719905,3.87408895,192.29,192.28,2.87]
[1755424720110,6.75408895,192.29,192.28,2.87]
[1755424720312,2.88,192.28,192.19,2.87]
[1755424720515,2.88,192.28,192.26,2.87]
[1755424721408,1.33185584,192.31,192.23,1.33185584]
[1755424721409,2.88,192.3,192.23,1.33185584]
[1755424721609,2.88,192.28,192.24,2.87]
[1755424721816,2.88,192.27,192.24,2.87]
[1755424722715,2.88,192.26,192.24,2.87]
[1755424723115,7.92422791,192.35,192.24,2.87]
[1755424723318,2.88,192.28,192.24,2.87]
[1755424723717,2.88,192.27,192.24,2.87]
[1755424723918,2.88,192.26,192.24,2.87]
[1755424728421,2.78,192.34,192.24,2.87]
[1755424728623,2.78,192.32,192.24,2.87]
[1755424728828,8.61750251,192.31,192.24,2.87]
[1755424729025,11.39750251,192.3,192.24,2.87]
[1755424729225,11.39750251,192.29,192.24,2.87]
[1755424729525,6.65534761,192.28,192.24,2.87]
[1755424729726,2.78,192.28,192.24,2.87]
[1755424731025,2.78,192.3,192.24,2.87]
[1755424731226,8.61980698,192.29,192.24,2.87]
[1755424731425,3.87572472,192.28,192.24,2.87]
[1755424731623,6.65572472,192.28,192.24,2.87]
[1755424731826,2.78,192.28,192.24,2.87]
[1755424732730,2.78,192.27,192.24,2.87]
[1755424736322,2.78,192.26,192.24,2.87]
[1755424736533,8.62231536,192.34,192.24,2.87]
[1755424736724,2.78,192.32,192.24,2.87]
[1755424736924,2.78,192.3,192.24,2.87]
[1755424737119,2.78,192.28,192.24,2.87]
[1755424737325,2.78,192.26,192.24,2.87]
[1755424737524,2.78,192.25,192.24,2.87]
[1755424740733,5.84231536,192.34,192.24,2.87]
[1755424741035,2.78,192.32,192.24,2.87]
[1755424741334,2.78,192.3,192.24,2.87]
[1755424741630,2.78,192.28,192.24,2.87]
[1755424741837,2.78,192.33,192.26,2.8]
[1755424742034,96.22037291,192.37,192.28,2.08191255]
[1755424742035,11.40798747,192.32,192.28,2.08191255]
[1755424742235,8.62798747,192.31,192.29,2.8]
[1755424742435,3.87931919,192.3,192.29,2.8]
[1755424744838,3.87931919,192.3,192.28,2.08191255]
[1755424745331,2.78,192.3,192.29,2.8]
[1755424745641,6.65870972,192.3,192.29,2.8]
[1755424745935,3.87870972,192.3,192.29,2.8]
[1755424746337,6.65870972,192.3,192.29,2.8]
[1755424746737,6.65870972,192.3,192.29,4.13176067]
[1755424751438,6.65870972,192.3,192.29,2.8]
[1755424751641,6.65870972,192.3,192.29,4.13176067]
[1755424753636,3.87870972,192.3,192.29,4.13176067]
[1755424753835,6.65870972,192.3,192.29,4.13176067]
[1755424754034,3.87870972,192.3,192.29,4.13176067]
[1755424754235,2.78,192.32,192.29,4.13176067]
[1755424754431,11.4233439,192.31,192.3,2.8]
[1755424755241,11.42336798,192.31,192.3,2.8]
[1755424760044,8.64336798,192.31,192.29,1.33176067]
[1755424760251,3.89789693,192.3,192.29,1.33176067]
[1755424760843,3.89789693,192.3,192.29,4.21176067]
[1755424761150,3.89789693,192.3,192.29,2.88]
[1755424761353,6.67789693,192.3,192.29,4.21176067]
[1755424762161,3.89789693,192.3,192.29,4.21176067]
[1755424764365,5.84231536,192.37,192.3,2.88]
[1755424764551,2.78,192.39,192.37,2.88]
[1755424764754,2.78,192.39,192.38,4.21176067]
[1755424764956,4.72924079,192.39,192.34,1.33176067]
[1755424765260,2.78,192.37,192.34,1.33176067]
[1755424766457,2.78,192.37,192.33,1.33176067]
[1755424767561,2.78,192.37,192.33,4.21176067]
[1755424768362,2.78,192.37,192.33,1.33176067]
[1755424769159,4.72265426,192.36,192.33,1.33176067]
[1755424769352,2.78,192.35,192.33,1.33176067]
[1755424772766,2.78,192.35,192.31,4.21176067]
[1755424772962,2.78,192.35,192.31,1.33176067]
[1755424773462,4.7213295,192.34,192.31,1.33176067]
[1755424773668,2.78,192.33,192.31,1.33176067]
[1755424774265,2.78,192.33,192.3,1.33176067]
[1755424777777,2.78,192.33,192.28,2.88]
[1755424777968,2.78,192.33,192.21,127.18]
[1755424778170,2.78,192.33,192.29,2.88]
[1755424779074,2.78,192.33,192.28,2.88]
[1755424780770,2.78,192.33,192.29,2.88]
[1755424782974,3.87044936,192.32,192.19,2.88]
[1755424783179,2.78,192.31,192.21,2.88]
[1755424790273,2.78,192.31,192.23,3.01]
[1755424795696,2.95,192.34,192.23,3.01]
[1755424795889,2.95,192.32,192.23,3.01]
[1755424796090,2.95,192.3,192.23,3.01]
[1755424797793,2.95,192.3,192.24,127.2]
[1755424797993,2.95,192.3,192.25,3.01]
[1755424800295,2.95,192.3,192.24,127.2]
[1755424800499,2.95,192.3,192.26,3.01]
[1755424800792,2.95,192.37,192.26,3.01]
[1755424800992,2.95,192.35,192.26,3.01]
[1755424801194,2.95,192.33,192.26,3.01]
[1755424801393,2.95,192.31,192.26,3.01]
[1755424805298,3.87731436,192.3,192.26,3.01]
[1755424805496,2.95,192.28,192.26,3.01]
[1755424806996,2.95,192.36,192.26,3.01]
[1755424807198,2.95,192.34,192.26,3.01]
[1755424807394,2.95,192.32,192.26,3.01]
[1755424812305,2.95,192.32,192.28,3.01]
[1755424814012,2.95,192.32,192.28,130.19]
[1755424815011,8.79231536,192.39,192.29,3.01]
[1755424815209,2.95,192.37,192.29,3.01]
[1755424815413,2.95,192.35,192.29,3.01]
[1755424815714,5.84231536,192.41,192.29,3.01]
[1755424815715,2.95,192.33,192.29,3.01]
[1755424816114,2.95,192.4,192.29,3.01]
[1755424816318,2.95,192.38,192.29,3.01]
[1755424816501,2.95,192.36,192.29,3.01]
[1755424816706,3.88918345,192.35,192.29,3.01]
[1755424817001,2.95,192.41,192.31,3.01]
[1755424817206,2.95,192.39,192.31,3.01]
[1755424817508,2.95,192.37,192.31,3.01]
[1755424817707,8.63449592,192.36,192.32,129.96]
[1755424817902,6.80845463,192.35,192.32,2.8]
[1755424818110,2.92,192.35,192.32,129.96]
[1755424818306,2.92,192.35,192.33,2.8]
[1755424819016,5.84231536,192.42,192.33,2.8]
[1755424819214,2.92,192.34,192.33,2.8]
[1755424820616,2.92,192.41,192.33,2.8]
[1755424820806,2.92,192.39,192.33,2.8]
[1755424821113,2.92,192.37,192.33,2.8]
[1755424821413,3.88600414,192.36,192.33,2.8]
[1755424821707,2.92,192.34,192.33,2.8]
[1755424822207,2.92,192.34,192.32,127.16]
[1755424822607,2.92,192.42,192.32,129.96]
[1755424822913,2.92,192.4,192.33,2.8]
[1755424823113,2.92,192.38,192.32,127.16]
[1755424823309,2.92,192.36,192.32,129.96]
[1755424823509,3.88334694,192.35,192.32,129.96]
[1755424823709,2.92,192.36,192.32,127.16]
[1755424823916,2.92,192.34,192.32,127.16]
[1755424824315,2.92,192.41,192.32,127.16]
[1755424824507,2.92,192.39,192.32,127.16]
[1755424824708,2.92,192.37,192.32,127.16]
[1755424824910,2.92,192.35,192.32,127.16]
[1755424826616,2.92,192.35,192.32,129.96]
[1755424827912,2.92,192.35,192.33,2.8]
[1755424828820,2.92,192.35,192.32,127.16]
[1755424829012,2.92,192.35,192.32,2.8]
[1755424829720,5.84231536,192.42,192.3,127.14]
[1755424829922,2.92,192.4,192.31,2.8]
[1755424830117,2.92,192.38,192.31,2.8]
[1755424830318,6.80296334,192.37,192.31,2.8]
[1755424830518,2.92,192.37,192.31,2.8]
[1755424836015,2.92,192.37,192.32,127.12]
[1755424836219,2.92,192.36,192.33,2.8]
[1755424836526,2.92,192.36,192.34,127.12]
[1755424836720,2.92,192.36,192.35,2.8]
[1755424839830,2.92,192.45,192.35,2.8]
[1755424840130,2.92,192.43,192.35,2.8]
[1755424840324,2.92,192.41,192.35,2.8]
[1755424840525,2.92,192.39,192.35,2.8]
[1755424841944,2.92,192.39,192.34,127.12]
[1755424842134,2.92,192.46,192.33,2.8]
[1755424842334,2.92,192.44,192.33,129.92]
[1755424842543,2.92,192.42,192.33,129.92]
[1755424842745,2.92,192.4,192.33,129.92]
[1755424842948,2.92,192.38,192.32,127.12]
[1755424843835,2.92,192.38,192.32,129.92]
[1755424845441,2.92,192.36,192.3,129.92]
[1755424846843,2.92,192.34,192.31,2.8]
[1755424848538,2.85,192.41,192.3,127.12]
[1755424848732,2.85,192.39,192.31,2.81]
[1755424849042,2.85,192.37,192.31,2.81]
[1755424849245,2.85,192.37,192.3,127.12]
[1755424849246,2.85,192.35,192.32,2.81]
[1755424849443,2.85,192.35,192.31,2.81]
[1755424849632,2.85,192.34,192.31,2.81]
[1755424851535,2.85,192.38,192.31,2.81]
[1755424851737,2.85,192.36,192.31,2.81]
[1755424851938,3.88624673,192.35,192.31,2.81]
[1755424852134,2.85,192.34,192.31,2.81]
[1755424852340,2.85,192.33,192.31,2.81]
[1755424852540,2.85,192.41,192.31,2.81]
[1755424852743,2.85,192.39,192.31,2.81]
[1755424852934,8.63923162,192.38,192.31,2.81]
[1755424853135,2.85,192.36,192.31,2.81]
[1755424853330,2.85,192.34,192.32,2.81]
[1755424854538,5.84231536,192.46,192.3,127.12]
[1755424854842,2.85,192.33,192.3,127.12]
[1755424855338,2.85,192.33,192.31,2.81]
[1755424855943,5.84231536,192.46,192.31,2.81]
[1755424856144,2.85,192.32,192.31,2.81]
[1755424856738,5.84231536,192.46,192.31,2.81]
[1755424856939,11.40537447,192.45,192.31,2.81]
[1755424857142,11.40537447,192.44,192.31,2.81]
[1755424857338,8.64152568,192.43,192.31,2.81]
[1755424857538,8.64152568,192.42,192.31,2.81]
[1755424857737,8.64152568,192.41,192.31,2.81]
[1755424858038,8.64152568,192.4,192.31,2.81]
[1755424858341,8.64152568,192.39,192.31,2.81]
[1755424858537,3.88767363,192.38,192.31,2.81]
[1755424858732,3.88767363,192.37,192.31,2.81]
[1755424858938,2.85,192.39,192.31,2.81]
[1755424859139,3.88885726,192.38,192.31,2.81]
[1755424859438,3.88885726,192.37,192.31,2.81]
[1755424859642,2.85,192.39,192.31,2.81]
[1755424859943,6.7392237,192.38,192.31,2.81]
[1755424860142,3.8892237,192.37,192.31,2.81]
[1755424860343,2.85,192.38,192.31,2.81]
[1755424860941,2.85,192.48,192.31,2.81]
[1755424861140,2.85,192.46,192.31,2.81]
[1755424861343,2.85,192.44,192.31,2.81]
[1755424861542,2.85,192.42,192.31,2.81]
[1755424861744,6.7398723,192.41,192.31,2.81]
[1755424861943,2.85,192.41,192.31,2.81]
[1755424863356,2.85,192.48,192.31,2.81]
[1755424863547,2.85,192.46,192.31,2.81]
[1755424863847,2.85,192.44,192.31,2.81]
[1755424864046,3.88892166,192.43,192.31,2.81]
[1755424864248,2.85,192.41,192.32,127.08]
[1755424864441,2.85,192.41,192.33,2.81]
[1755424864841,2.85,192.41,192.34,127.08]
[1755424865040,2.85,192.41,192.35,2.81]
[1755424875353,2.85,192.41,192.36,127.06]
[1755424876146,2.85,192.39,192.33,2.81]
[1755424876348,2.85,192.39,192.33,129.85]
[1755424876746,2.85,192.39,192.33,127.04]
[1755424876951,2.85,192.37,192.33,127.04]
[1755424877147,2.85,192.35,192.33,127.04]
[1755424879652,5.84231536,192.43,192.33,127.04]
[1755424879653,3.0,192.34,192.33,127.04]
[1755424879956,3.0,192.34,192.33,130.1]
[1755424880154,3.0,192.34,192.33,127.04]
[1755424884160,3.0,192.34,192.29,3.06]
[1755424884658,3.0,192.34,192.27,130.12]
[1755424885359,3.88762052,192.33,192.27,130.12]
[1755424885565,3.0,192.32,192.27,130.12]
[1755424886250,3.0,192.32,192.27,127.06]
[1755424887160,3.0,192.32,192.27,130.12]
[1755424887357,3.0,192.32,192.24,349.2]
[1755424887558,3.0,192.3,192.25,3.06]
[1755424887859,3.0,192.29,192.25,3.06]
[1755424888058,5.84231536,192.4,192.25,3.06]
[1755424888358,3.0,192.38,192.25,3.06]
[1755424888559,3.0,192.36,192.25,3.06]
[1755424888756,15.6,192.44,192.25,3.06]
[1755424888757,3.0,192.34,192.25,3.06]
[1755424888955,3.0,192.32,192.25,3.06]
[1755424890265,3.0,192.32,192.25,130.14]
[1755424890860,3.0,192.32,192.26,3.06]
[1755424893361,3.0,192.32,192.25,130.14]
[1755424893664,3.0,192.32,192.26,3.06]
[1755424896161,3.0,192.32,192.25,127.1]
[1755424896560,3.87205594,192.31,192.25,127.1]
[1755424896766,3.0,192.32,192.25,127.1]
[1755424897059,3.0,192.3,192.21,127.16]
[1755424897264,3.8704355,192.29,192.21,130.22]
[1755424897451,3.0,192.28,192.21,130.22]
[1755424898763,3.0,192.28,192.22,3.06]
[1755424910171,3.0,192.28,192.13,349.28]
[1755424910172,3.0,192.28,192.15,2.98]
[1755424910379,3.0,192.28,192.15,130.12]
[1755424910671,3.0,192.28,192.16,2.98]
[1755424913170,3.85991909,192.27,192.16,2.98]
[1755424913371,3.0,192.28,192.16,2.98]
[1755424913576,3.01,192.26,192.16,2.98]
[1755424915175,3.85903275,192.25,192.16,2.98]
[1755424915380,3.01,192.26,192.16,2.98]
[1755424915572,3.01,192.24,192.16,2.98]
[1755424918073,3.8608679,192.23,192.16,2.98]
[1755424918274,3.01,192.22,192.16,2.98]
[1755424920176,3.01,192.2,192.16,2.98]
[1755424921183,3.01,192.27,192.11,0.90473034]
[1755424921369,5.84231536,192.28,192.12,2.98]
[1755424921370,3.01,192.25,192.12,2.98]
[1755424921574,3.01,192.23,192.12,2.98]
[1755424921774,3.01,192.21,192.12,2.98]
[1755424922083,3.01,192.19,192.12,2.98]
[1755424922469,3.01,192.27,192.12,2.98]
[1755424922675,3.01,192.25,192.12,2.98]
[1755424922877,3.01,192.27,192.12,2.98]
[1755424924083,3.01,192.27,192.14,2.98]
[1755424929893,3.01,192.38,192.14,2.98]
[1755424930091,11.20698541,192.37,192.14,2.98]
[1755424930287,3.01,192.35,192.14,2.98]
[1755424930592,3.01,192.33,192.15,2.98]
[1755424930890,3.01,192.33,192.17,2.98]
[1755424933682,5.84231536,192.44,192.18,2.98]
[1755424933882,3.01,192.37,192.2,2.98]
[1755424935694,3.01,192.37,192.21,127.3]
[1755424935989,3.01,192.37,192.22,2.98]
[1755424936395,3.01,192.37,192.24,2.98]
[1755424953804,2.83,192.39,192.24,2.98]
[1755424956106,2.83,192.41,192.25,2.95]
[1755424956303,2.83,192.41,192.27,2.95]
[1755424956809,2.83,192.53,192.29,2.95]
[1755424957017,8.40429728,192.52,192.29,2.95]
[1755424957205,2.83,192.5,192.29,2.95]
[1755424959012,2.83,192.5,192.27,15.6]
[1755424959013,2.83,192.5,192.32,2.95]
[1755424959202,2.83,192.5,192.34,2.95]
[1755424960303,2.83,192.5,192.35,62.0]
[1755424960605,2.83,192.5,192.36,2.95]
[1755424963902,2.83,192.5,192.36,64.95]
[1755424964201,2.83,192.5,192.37,2.95]
[1755424970012,2.83,192.5,192.39,2.9]
[1755424977816,2.99,192.48,192.4,2.9]
[1755424982617,2.99,192.48,192.39,2.9]
[1755424984321,2.99,192.48,192.38,127.14]
[1755424984617,2.99,192.48,192.38,130.04]
[1755424984819,2.99,192.48,192.39,2.9]
[1755424994530,3.82701826,192.47,192.38,127.14]
[1755424994730,2.99,192.46,192.38,130.04]
[1755424995129,2.99,192.46,192.39,2.9]
[1755424996519,2.99,192.44,192.27,2.9]
[1755424996724,2.99,192.42,192.27,2.9]
[1755424997029,2.99,192.4,192.27,2.9]
[1755424997225,2.99,192.38,192.27,2.9]
[1755424998028,2.94,192.36,192.27,2.9]
[1755424998228,2.94,192.34,192.27,2.9]
[1755424998422,5.84231536,192.41,192.27,2.9]
[1755424998625,2.94,192.32,192.27,2.9]
[1755424999532,2.94,192.31,192.27,2.9]
[1755424999833,2.94,192.3,192.27,2.9]
[1755425000227,2.94,192.29,192.27,2.9]
[1755425002228,8.78231536,192.42,192.26,349.22]
[1755425002532,2.94,192.4,192.26,352.06]
[1755425002729,2.94,192.38,192.27,2.84]
[1755425002930,2.94,192.36,192.27,2.84]
[1755425003129,2.94,192.34,192.27,2.84]
[1755425012336,2.94,192.34,192.28,127.18]
[1755425012642,2.94,192.34,192.3,2.84]
[1755425013242,2.94,192.34,192.28,127.18]
[1755425013442,2.94,192.34,192.29,2.84]
[1755425013640,2.94,192.34,192.3,2.84]
[1755425013844,2.94,192.34,192.29,2.84]
[1755425014441,2.94,192.32,192.29,2.84]
[1755425015543,2.94,192.33,192.29,2.84]
[1755425015947,2.94,192.32,192.29,2.84]
[1755425017047,5.84231536,192.45,192.29,2.84]
[1755425017246,2.94,192.43,192.29,2.84]
[1755425017443,2.94,192.41,192.29,2.84]
[1755425017645,8.38548536,192.4,192.29,2.84]
[1755425017842,3.81972577,192.39,192.29,2.84]
[1755425018047,2.94,192.37,192.29,2.84]
[1755425021749,2.94,192.37,192.3,2.84]
[1755425025656,5.84231536,192.47,192.3,2.84]
[1755425025850,2.94,192.45,192.3,2.84]
[1755425026054,5.84231536,192.48,192.3,2.84]
[1755425026055,2.94,192.43,192.3,2.84]
[1755425026257,2.94,192.41,192.3,2.84]
[1755425027653,3.01,192.39,192.32,3.0]
[1755425027851,3.01,192.39,192.34,3.0]
[1755425028050,3.01,192.39,192.36,3.0]
[1755425028854,3.01,192.39,192.34,3.0]
[1755425029252,3.01,192.39,192.35,3.0]
[1755425030958,3.01,192.39,192.32,127.14]
[1755425031260,350.16441291,192.56,192.31,3.0]
[1755425031261,3.82775836,192.38,192.31,3.0]
[1755425031453,3.01,192.36,192.31,3.0]
[1755425031647,3.01,192.36,192.3,127.14]
[1755425032155,3.01,192.36,192.3,130.14]
[1755425032749,3.01,192.36,192.31,3.0]
[1755425033362,3.01,192.36,192.32,3.0]
[1755425035157,5.84231536,192.45,192.31,3.0]
[1755425035359,3.01,192.43,192.31,3.0]
[1755425035563,3.01,192.41,192.31,3.0]
[1755425035763,3.01,192.39,192.31,3.0]
[1755425036153,3.01,192.37,192.32,3.0]
[1755425036358,3.83564111,192.36,192.31,127.14]
[1755425036561,3.01,192.35,192.34,3.0]
[1755425039876,3.01,192.43,192.34,3.0]
[1755425040077,3.01,192.41,192.34,3.0]
[1755425040278,3.01,192.39,192.31,127.14]
[1755425040473,3.01,192.37,192.32,3.0]
[1755425040673,6.85327037,192.36,192.32,3.0]
[1755425040878,3.01,192.35,192.32,3.0]
[1755425041374,3.01,192.41,192.32,3.0]
[1755425041571,3.01,192.39,192.32,3.0]
[1755425041777,3.01,192.37,192.32,3.0]
[1755425042080,3.01,192.35,192.32,3.0]
[1755425042284,3.01,192.33,192.32,3.0]
[1755425042473,6.85924123,192.33,192.32,3.0]
[1755425043084,3.01,192.33,192.32,3.0]
[1755425044680,6.86062847,192.33,192.32,3.0]
[1755425044877,3.85062847,192.33,192.32,3.0]
[1755425045086,3.01,192.32,192.26,127.12]
[1755425045380,3.01,192.31,192.27,3.0]
[1755425045978,3.01,192.29,192.28,3.0]
[1755425051791,3.01,192.29,192.25,3.0]
[1755425051987,3.01,192.28,192.25,3.0]
[1755425052779,3.84596348,192.27,192.25,3.0]
[1755425052980,3.01,192.26,192.25,3.0]
[1755425054486,6.85421153,192.26,192.22,3.0]
[1755425054682,5.84231536,192.33,192.22,3.0]
[1755425054683,3.01,192.32,192.22,130.14]
[1755425054888,3.01,192.3,192.22,130.14]
[1755425055185,3.01,192.28,192.22,130.14]
[1755425055384,3.01,192.26,192.23,3.0]
[1755425057189,3.01,192.26,192.24,3.0]
[1755425057384,2.88,192.25,192.22,127.14]
[1755425057993,2.88,192.25,192.23,3.06]
[1755425058693,2.88,192.27,192.23,3.06]
[1755425058994,2.88,192.29,192.23,3.06]
[1755425059199,2.88,192.27,192.25,3.06]
[1755425059389,2.88,192.27,192.23,3.06]
[1755425059694,2.88,192.27,192.24,3.06]
[1755425059994,2.88,192.27,192.25,3.06]
[1755425060195,2.88,192.26,192.25,3.06]
[1755425060591,2.88,192.34,192.25,3.06]
[1755425060893,2.88,192.32,192.23,3.06]
[1755425061093,2.88,192.3,192.23,3.06]
[1755425061397,2.88,192.28,192.23,3.06]
[1755425061597,2.88,192.28,192.24,3.06]
[1755425061895,2.88,192.28,192.23,3.06]
[1755425063200,2.88,192.28,192.24,3.06]
[1755425063599,2.88,192.28,192.21,3.06]
[1755425063804,2.88,192.26,192.21,3.06]
[1755425064002,2.88,192.26,192.2,127.16]
[1755425064199,8.72231536,192.32,192.19,3.06]
[1755425064399,2.88,192.29,192.17,3.06]
[1755425064700,2.88,192.27,192.17,3.06]
[1755425064902,2.88,192.25,192.17,3.06]
[1755425065095,2.88,192.23,192.17,3.06]
[1755425067097,2.88,192.3,192.17,3.06]
[1755425067297,2.88,192.28,192.17,3.06]
[1755425067497,2.88,192.26,192.17,3.06]
[1755425067698,2.88,192.24,192.17,3.06]
[1755425072598,2.88,192.22,192.13,3.06]
[1755425074402,2.88,192.29,192.13,3.06]
[1755425074702,2.88,192.27,192.13,3.06]
[1755425074898,2.88,192.25,192.13,3.06]
[1755425075098,2.88,192.23,192.13,3.06]
[1755425076998,2.88,192.21,192.13,3.06]
[1755425086817,2.88,192.28,192.13,3.06]
[1755425087107,2.88,192.26,192.13,3.06]
[1755425087314,2.88,192.24,192.13,3.06]
[1755425087517,5.84231536,192.29,192.13,3.06]
[1755425087518,2.91,192.22,192.13,3.06]
[1755425087908,2.91,192.29,192.13,3.06]
[1755425088114,2.91,192.27,192.13,3.06]
[1755425088320,2.91,192.25,192.13,3.06]
[1755425089317,8.76347304,192.34,192.13,3.06]
[1755425089318,3.8240221,192.24,192.13,3.06]
[1755425089516,2.91,192.23,192.13,3.06]
[1755425099412,2.91,192.23,192.14,127.18]
[1755425099619,2.91,192.23,192.15,3.02]
[1755425104027,2.91,192.32,192.15,3.02]
[1755425104229,2.91,192.3,192.15,3.02]
[1755425104416,8.4117618,192.29,192.15,3.02]
[1755425104619,6.74531224,192.28,192.15,3.02]
[1755425104929,6.74531224,192.27,192.15,3.02]
[1755425105123,2.91,192.27,192.15,3.02]
[1755425106722,2.91,192.34,192.15,3.02]
[1755425106923,2.91,192.32,192.15,3.02]
[1755425107124,2.91,192.3,192.15,3.02]
[1755425107324,431.92089192,192.42,192.15,3.02]
[1755425107325,3.83672756,192.29,192.15,3.02]
[1755425107526,2.91,192.27,192.15,3.02]
[1755425112129,2.91,192.27,192.17,3.02]
[1755425112436,2.91,192.25,192.18,127.14]
[1755425113037,2.91,192.25,192.18,130.16]
[1755425116438,2.91,192.25,192.18,127.14]
[1755425116737,2.91,192.25,192.19,3.02]
[1755425124354,3.83066963,192.24,192.19,3.02]
[1755425124555,3.07,192.23,192.19,3.02]
[1755425126554,3.07,192.23,192.18,127.14]
[1755425126753,5.84231536,192.31,192.18,127.14]
[1755425126951,3.07,192.29,192.19,2.97]
[1755425127149,3.07,192.27,192.19,2.97]
[1755425127350,8.41093573,192.26,192.19,2.97]
[1755425127558,6.90098589,192.25,192.19,2.97]
[1755425127751,3.07,192.23,192.2,2.97]
[1755425129056,3.07,192.23,192.18,2.97]
[1755425129258,3.8329695,192.22,192.18,2.97]
[1755425129460,3.07,192.21,192.18,2.97]
[1755425129755,3.07,192.21,192.16,2.97]
[1755425129956,3.07,192.21,192.15,127.14]
[1755425130157,3.07,192.21,192.17,2.97]
[1755425130551,3.07,192.21,192.15,127.14]
[1755425130757,3.07,192.21,192.16,2.97]
[1755425131160,3.07,192.21,192.17,2.97]
[1755425132257,3.07,192.19,192.17,2.97]
[1755425134664,3.83292538,192.18,192.13,2.97]
[1755425134958,3.83276164,192.17,192.14,2.97]
[1755425135155,3.07,192.16,192.14,2.97]
[1755425135562,3.07,192.16,192.15,2.97]
[1755425137566,3.07,192.16,192.14,2.97]
[1755425138954,3.07,192.16,192.11,352.25]
[1755425139158,3.07,192.16,192.11,479.39]
[1755425139560,3.07,192.16,192.13,2.97]
[1755425140776,3.07,192.16,192.11,476.42]
[1755425141067,3.07,192.16,192.12,2.97]
[1755425141365,3.07,192.16,192.11,127.14]
[1755425141870,3.83199971,192.15,192.11,127.14]
[1755425142170,3.07,192.14,192.11,127.14]
[1755425142466,3.07,192.14,192.11,130.11]
[1755425142676,3.07,192.14,192.07,2.97]
[1755425142971,15.59,192.29,192.0,349.5]
[1755425142972,3.07,192.12,192.05,130.13]
[1755425143365,3.82765836,192.11,192.05,130.13]
[1755425143574,3.07,192.1,192.05,127.16]
[1755425143767,3.07,192.1,192.06,2.97]
[1755425144871,3.07,192.1,192.05,127.16]